[Event "95th Caplin Hastings Congress"]
[Site "Hastings"]
[Date "2020.01.03"]
[Round "7.35"]
[White "Drastik, Penelope"]
[Black "Hutchinson, Paul A"]
[Result "0-1"]
[ECO "D52"]
[WhiteElo "1802"]
[BlackElo "2112"]
[Annotator "NA"]
[PlyCount "50"]
[EventDate "2019.12.28"]
[EventType "swiss"]
[EventCountry "ENG"]
[SourceTitle "playchess.com"]
[Source "ChessBase"]
[SourceQuality "1"]
[TimeControl "40/6600+30:3000+30"]

1. d4 {[%emt 0:09:31]} d5 {[%emt 0:09:34]} 2. c4 {[%emt 0:00:03]} e6 {[%emt 0:00:07]} 3. Nc3 {[%emt 0:00:02]} Nf6 {[%emt 0:00:16]} 4. Bg5 {[%emt 0:00:03]} c6 {[%emt 0:00:15]} 5. e3 {[%emt 0:00:03]} Nbd7 {[%emt 0:00:20]} 6. Nf3 {[%emt 0:00:05]} Qa5 {[%emt 0:00:20]} 7. Be2 {[%emt 0:01:02]} Ne4 {[%emt 0:00:23]} 8. O-O {[%emt 0:00:04]} Bb4 {[%emt 0:05:02]} 9. Qc2 {[%emt 0:13:22]} Bxc3 {[%emt 0:03:33]} 10. bxc3 {[%emt 0:00:06]} Qxc3 {[%emt 0:00:08]} 11. Rfc1 {[%emt 0:01:25]} Qxc2 {[%emt 0:18:09]} 12. Rxc2 {[%emt 0:00:04]} Nxg5 {[%emt 0:09:30]} 13. Nxg5 {[%emt 0:00:05]} dxc4 {[%emt 0:02:12]} 14. Bxc4 {[%emt 0:01:22]} Nb6 {[%emt 0:00:41]} 15. Bd3 {[%emt 0:00:11]} f6 {[%emt 0:04:59]} 16. Ne4 {[%emt 0:05:24]} Ke7 {[%emt 0:02:26]} 17. a4 {[%emt 0:00:23]} a5 {[%emt 0:02:18]} 18. Nd2 {[%emt 0:04:53]} Nd5 {[%emt 0:05:04]} 19. Rc5 {[%emt 0:00:12]} Bd7 {[%emt 0:03:05]} 20. Nb3 {[%emt 0:01:00]} b6 {[%emt 0:00:13]} 21. Rcc1 {[%emt 0:01:25]} Nb4 {[%emt 0:00:16]} 22. Be4 {[%emt 0:00:07]} Rab8 {[%emt 0:00:43]} 23. f4 {[%emt 0:01:32]} h6 {[%emt 0:04:35]} 24. Rf1 {[%emt 0:00:59]} f5 {[%emt 0:00:23]} 25. Bf3 {[%emt 0:00:21]} Nc2 {[%emt 0:01:01]} 0-1

[Event "95th Caplin Hastings Congress"]
[Site "Hastings"]
[Date "2020.01.03"]
[Round "7.36"]
[White "White, Stuart A"]
[Black "Garnett, John S"]
[Result "1-0"]
[ECO "A52"]
[WhiteElo "2106"]
[BlackElo "1865"]
[Annotator "NA"]
[PlyCount "61"]
[EventDate "2019.12.28"]
[EventType "swiss"]
[EventCountry "ENG"]
[SourceTitle "playchess.com"]
[Source "ChessBase"]
[SourceQuality "1"]
[TimeControl "40/6600+30:3000+30"]

1. d4 {[%emt 0:09:33]} Nf6 {[%emt 0:09:41]} 2. c4 {[%emt 0:00:05]} e5 {[%emt 0:00:09]} 3. dxe5 {[%emt 0:00:14]} Ng4 {[%emt 0:00:09]} 4. e3 {[%emt 0:00:06]} Nxe5 {[%emt 0:00:18]} 5. f4 {[%emt 0:00:03]} Nec6 {[%emt 0:01:18]} 6. Nc3 {[%emt 0:01:30]} Bb4 {[%emt 0:02:01]} 7. Bd2 {[%emt 0:02:12]} d6 {[%emt 0:01:00]} 8. Bd3 {[%emt 0:01:44]} Nd7 {[%emt 0:01:41]} 9. Nf3 {[%emt 0:03:17]} Nf6 {[%emt 0:01:53]} 10. Qc2 {[%emt 0:05:37]} Bxc3 {[%emt 0:03:45]} 11. Bxc3 {[%emt 0:02:28]} Qe7 {[%emt 0:01:00]} 12. O-O-O {[%emt 0:03:05]} Bd7 {[%emt 0:03:30]} 13. Kb1 {[%emt 0:02:57]} O-O-O {[%emt 0:01:15]} 14. e4 {[%emt 0:03:30]} Rhe8 {[%emt 0:02:59]} 15. Rde1 {[%emt 0:02:41]} Nh5 {[%emt 0:04:53]} 16. g3 {[%emt 0:05:16]} Qf8 {[%emt 0:03:41]} 17. Rhf1 {[%emt 0:04:24]} g6 {[%emt 0:06:27]} 18. Ka1 {[%emt 0:13:41]} Kb8 {[%emt 0:02:44]} 19. b4 {[%emt 0:03:30]} f6 {[%emt 0:05:21]} 20. b5 {[%emt 0:01:50]} Ne7 {[%emt 0:00:36]} 21. Nd4 {[%emt 0:06:27]} Ng7 {[%emt 0:03:22]} 22. Qb2 {[%emt 0:05:37]} Nc8 {[%emt 0:04:13]} 23. Nc6+ {[%emt 0:11:54]} bxc6 {[%emt 0:01:09]} 24. bxc6+ {[%emt 0:00:03]} Nb6 {[%emt 0:00:09]} 25. cxd7 {[%emt 0:00:29]} Re6 {[%emt 0:03:05]} 26. a4 {[%emt 0:04:34]} Ka8 {[%emt 0:01:38]} 27. Qb5 {[%emt 0:02:05]} Rb8 {[%emt 0:05:25]} 28. Qc6+ {[%emt 0:05:36]} Rb7 {[%emt 0:00:11]} 29. f5 {[%emt 0:00:22]} d5 {[%emt 0:03:33]} 30. d8=Q+ {[%emt 0:00:07]} Qxd8 {[%emt 0:00:46]} 31. fxe6 {[%emt 0:01:16]} 1-0

[Event "95th Caplin Hastings Congress"]
[Site "Hastings"]
[Date "2020.01.03"]
[Round "7.37"]
[White "Shivika Rohilla"]
[Black "Willson, Ollie"]
[Result "0-1"]
[ECO "B48"]
[WhiteElo "1803"]
[BlackElo "2082"]
[Annotator "NA"]
[PlyCount "86"]
[EventDate "2019.12.28"]
[EventType "swiss"]
[EventCountry "ENG"]
[SourceTitle "playchess.com"]
[Source "ChessBase"]
[SourceQuality "1"]
[TimeControl "40/6600+30:3000+30"]

1. e4 {[%emt 0:09:31]} c5 {[%emt 0:09:40]} 2. Nf3 {[%emt 0:00:05]} e6 {[%emt 0:00:09]} 3. d4 {[%emt 0:00:05]} cxd4 {[%emt 0:00:03]} 4. Nxd4 {[%emt 0:00:05]} Nc6 {[%emt 0:00:04]} 5. Nc3 {[%emt 0:00:07]} Qc7 {[%emt 0:00:03]} 6. Be3 {[%emt 0:00:07]} a6 {[%emt 0:00:07]} 7. Qf3 {[%emt 0:00:33]} Nf6 {[%emt 0:02:49]} 8. O-O-O {[%emt 0:00:23]} Ne5 {[%emt 0:14:58]} 9. Qg3 {[%emt 0:04:01]} d6 {[%emt 0:00:06]} 10. Be2 {[%emt 0:02:21]} h5 {[%emt 0:12:52]} 11. f4 {[%emt 0:13:22]} Neg4 {[%emt 0:05:15]} 12. h3 {[%emt 0:00:54]} h4 {[%emt 0:17:25]} 13. Qf3 {[%emt 0:00:55]} Nxe3 {[%emt 0:00:10]} 14. Qxe3 {[%emt 0:00:04]} b5 {[%emt 0:14:41]} 15. Bf3 {[%emt 0:01:13]} Bb7 {[%emt 0:01:39]} 16. f5 {[%emt 0:04:57]} e5 {[%emt 0:02:38]} 17. Nb3 {[%emt 0:01:27]} Rc8 {[%emt 0:05:33]} 18. Qd3 {[%emt 0:05:22]} b4 {[%emt 0:02:07]} 19. Ne2 {[%emt 0:01:26]} a5 {[%emt 0:07:25]} 20. Kb1 {[%emt 0:04:42]} a4 {[%emt 0:01:24]} 21. Na1 {[%emt 0:00:51]} Qb6 {[%emt 0:01:11]} 22. c4 {[%emt 0:05:30]} Be7 {[%emt 0:05:46]} 23. b3 {[%emt 0:03:22]} Nd7 {[%emt 0:01:38]} 24. Nc1 {[%emt 0:02:19]} Nc5 {[%emt 0:00:14]} 25. Qe2 {[%emt 0:00:24]} axb3 {[%emt 0:01:28]} 26. axb3 {[%emt 0:00:08]} Ra8 {[%emt 0:00:32]} 27. Rd2 {[%emt 0:06:32]} Bg5 {[%emt 0:00:44]} 28. Rb2 {[%emt 0:00:44]} Ra3 {[%emt 0:05:09]} 29. Na2 {[%emt 0:03:52]} O-O {[%emt 0:00:37]} 30. Rf1 {[%emt 0:01:02]} Rfa8 {[%emt 0:01:37]} 31. Re1 {[%emt 0:02:03]} Bc6 {[%emt 0:02:38]} 32. Qd1 {[%emt 0:02:57]} Qa6 {[%emt 0:01:45]} 33. Qc2 {[%emt 0:01:21]} Qb7 {[%emt 0:01:32]} 34. Re2 {[%emt 0:00:56]} Bf4 {[%emt 0:00:22]} 35. Re1 {[%emt 0:00:40]} R8a7 {[%emt 0:01:38]} 36. Re2 {[%emt 0:00:30]} Qa8 {[%emt 0:00:13]} 37. g4 {[%emt 0:01:24]} hxg3 {[%emt 0:00:18]} 38. Bg2 {[%emt 0:00:25]} f6 {[%emt 0:01:17]} 39. Bf3 {[%emt 0:00:10]} Be8 {[%emt 0:00:52]} 40. Qd1 {[%emt 0:01:06]} Bc6 {[%emt 0:00:46]} 41. Qc2 {[%emt 0:50:07]} g6 {[%emt 0:07:54]} 42. fxg6 {[%emt 0:00:00]} f5 {[%emt 0:00:10]} 43. Bg2 {[%emt 0:00:00]} Bxe4 {[%emt 0:00:35]} 0-1

[Event "95th Caplin Hastings Congress"]
[Site "Hastings"]
[Date "2020.01.03"]
[Round "7.38"]
[White "Wall, Tim P"]
[Black "Mineev, Sergey I."]
[Result "1-0"]
[ECO "A49"]
[WhiteElo "2218"]
[BlackElo "1588"]
[Annotator "NA"]
[PlyCount "87"]
[EventDate "2019.12.28"]
[EventType "swiss"]
[EventCountry "ENG"]
[SourceTitle "playchess.com"]
[Source "ChessBase"]
[SourceQuality "1"]
[TimeControl "40/6600+30:3000+30"]

1. d4 {[%emt 0:13:33]} Nf6 {[%emt 0:09:37]} 2. Nf3 {[%emt 0:00:44]} g6 {[%emt 0:00:12]} 3. g3 {[%emt 0:00:12]} Bg7 {[%emt 0:00:07]} 4. Bg2 {[%emt 0:00:12]} O-O {[%emt 0:00:06]} 5. O-O {[%emt 0:00:14]} d6 {[%emt 0:00:03]} 6. b3 {[%emt 0:00:13]} Nc6 {[%emt 0:03:50]} 7. Bb2 {[%emt 0:00:30]} Nh5 {[%emt 0:05:45]} 8. e4 {[%emt 0:13:06]} e5 {[%emt 0:02:47]} 9. dxe5 {[%emt 0:04:11]} Nxe5 {[%emt 0:01:17]} 10. Nxe5 {[%emt 0:01:05]} Bxe5 {[%emt 0:03:31]} 11. Nc3 {[%emt 0:06:09]} Rb8 {[%emt 0:12:54]} 12. a4 {[%emt 0:05:07]} f5 {[%emt 0:05:55]} 13. f4 {[%emt 0:04:38]} Bxc3 {[%emt 0:03:37]} 14. Bxc3 {[%emt 0:00:24]} fxe4 {[%emt 0:06:44]} 15. Bxe4 {[%emt 0:01:43]} c6 {[%emt 0:03:02]} 16. a5 {[%emt 0:02:31]} d5 {[%emt 0:02:48]} 17. Bf3 {[%emt 0:00:46]} Nf6 {[%emt 0:03:10]} 18. Qd4 {[%emt 0:01:14]} b6 {[%emt 0:02:58]} 19. axb6 {[%emt 0:10:45]} axb6 {[%emt 0:00:54]} 20. b4 {[%emt 0:02:31]} Qd6 {[%emt 0:02:29]} 21. b5 {[%emt 0:15:51]} c5 {[%emt 0:09:05]} 22. Qe5 {[%emt 0:01:48]} Qxe5 {[%emt 0:01:18]} 23. Bxe5 {[%emt 0:00:11]} Bh3 {[%emt 0:00:40]} 24. Bxf6 {[%emt 0:06:07]} Rxf6 {[%emt 0:00:54]} 25. Bxd5+ {[%emt 0:00:09]} Be6 {[%emt 0:00:58]} 26. Rfd1 {[%emt 0:04:10]} Bxd5 {[%emt 0:03:03]} 27. Rxd5 {[%emt 0:00:09]} Rb7 {[%emt 0:02:29]} 28. Kf2 {[%emt 0:04:11]} Kf7 {[%emt 0:02:20]} 29. Rad1 {[%emt 0:07:20]} Re6 {[%emt 0:01:41]} 30. Rd7+ {[%emt 0:01:04]} Re7 {[%emt 0:00:23]} 31. Rxb7 {[%emt 0:00:16]} Rd7 {[%emt 0:00:06]} 32. Rc7 Rxc7 {[%emt 0:00:31]} 33. Rd5 {[%emt 0:00:07]} Rb7 34. Rd6 {[%emt 0:01:00]} Ke7 {[%emt 0:01:56]} 35. Rc6 {[%emt 0:00:25]} Kf7 {[%emt 0:01:11]} 36. Ke3 {[%emt 0:03:15]} Re7+ {[%emt 0:00:20]} 37. Kd3 {[%emt 0:00:13]} Rd7+ {[%emt 0:01:04]} 38. Kc3 {[%emt 0:00:33]} Rb7 {[%emt 0:00:12]} 39. Kc4 {[%emt 0:00:56]} Ke7 {[%emt 0:00:52]} 40. c3 {[%emt 0:00:23]} Kf7 {[%emt 0:00:12]} 41. Kd5 {[%emt 0:50:46]} Rd7+ {[%emt 0:50:35]} 42. Rd6 {[%emt 0:00:15]} Ke7 {[%emt 0:00:15]} 43. Rxd7+ {[%emt 0:00:21]} Kxd7 {[%emt 0:00:07]} 44. g4 {[%emt 0:00:56] Kd6+ Ke4 Kd5+} 1-0

[Event "95th Caplin Hastings Congress"]
[Site "Hastings"]
[Date "2020.01.03"]
[Round "7.39"]
[White "Price, Gwilym"]
[Black "Spanton, Tim R"]
[Result "1/2-1/2"]
[ECO "B35"]
[WhiteElo "2110"]
[BlackElo "1854"]
[Annotator "ChessBase"]
[PlyCount "37"]
[EventDate "2019.12.28"]
[EventType "swiss"]
[EventCountry "ENG"]
[SourceTitle "playchess.com"]
[Source "ChessBase"]
[SourceQuality "1"]
[TimeControl "40/6600+30:3000+30"]

1. e4 {[%emt 0:09:31]} c5 {[%emt 0:09:34]} 2. Nf3 {[%emt 0:00:06]} g6 {[%emt 0:00:06]} 3. d4 {[%emt 0:00:06]} cxd4 {[%emt 0:00:04]} 4. Nxd4 {[%emt 0:00:12]} Nc6 {[%emt 0:00:06]} 5. Nc3 {[%emt 0:00:11]} Bg7 {[%emt 0:00:08]} 6. Be3 {[%emt 0:00:08]} Nf6 {[%emt 0:00:09]} 7. Bc4 {[%emt 0:00:12]} O-O {[%emt 0:00:18]} 8. Bb3 {[%emt 0:00:04]} d5 {[%emt 0:00:06]} 9. exd5 {[%emt 0:06:13]} Na5 {[%emt 0:00:10]} 10. h3 {[%emt 0:02:44]} Nxb3 {[%emt 0:00:21]} 11. Nxb3 {[%emt 0:00:11]} b6 {[%emt 0:00:15]} 12. Qd2 {[%emt 0:10:39]} Bb7 {[%emt 0:00:20]} 13. Rd1 {[%emt 0:01:16]} Qc7 {[%emt 0:00:49]} 14. d6 {[%emt 0:21:25]} Qxd6 {[%emt 0:00:53]} 15. Qxd6 {[%emt 0:00:46]} exd6 {[%emt 0:00:06]} 16. O-O {[%emt 0:00:12]} Rfd8 {[%emt 0:04:19]} 17. a4 {[%emt 0:06:26]} Ne4 {[%emt 0:04:17]} 18. Nxe4 {[%emt 0:05:55]} Bxe4 {[%emt 0:00:09]} 19. Nd4 {[%emt 0:00:09]} 1/2-1/2

[Event "95th Caplin Hastings Congress"]
[Site "Hastings"]
[Date "2020.01.03"]
[Round "7.40"]
[White "Okhai, Shabir"]
[Black "Howell, Oliver W"]
[Result "1-0"]
[ECO "C18"]
[WhiteElo "2103"]
[BlackElo "1918"]
[Annotator "NA"]
[PlyCount "95"]
[EventDate "2019.12.28"]
[EventType "swiss"]
[EventCountry "ENG"]
[SourceTitle "playchess.com"]
[Source "ChessBase"]
[SourceQuality "1"]
[TimeControl "40/6600+30:3000+30"]

1. e4 {[%emt 0:09:32]} e6 {[%emt 0:09:35]} 2. d4 {[%emt 0:00:05]} d5 {[%emt 0:00:01]} 3. Nc3 {[%emt 0:00:14]} Bb4 {[%emt 0:00:07]} 4. e5 {[%emt 0:00:16]} Ne7 {[%emt 0:00:11]} 5. a3 {[%emt 0:00:09]} Bxc3+ {[%emt 0:00:05]} 6. bxc3 {[%emt 0:00:02]} c5 {[%emt 0:00:20]} 7. Qg4 {[%emt 0:00:45]} Qc7 {[%emt 0:00:11]} 8. Bd3 {[%emt 0:00:27]} c4 {[%emt 0:00:23]} 9. Be2 {[%emt 0:00:18]} Nf5 {[%emt 0:01:11]} 10. Bd1 {[%emt 0:03:24]} Nc6 {[%emt 0:01:16]} 11. Ne2 {[%emt 0:00:22]} Bd7 {[%emt 0:01:15]} 12. Ng3 {[%emt 0:00:21]} Nce7 {[%emt 0:11:01]} 13. Nh5 {[%emt 0:08:05]} O-O-O {[%emt 0:01:07]} 14. Qh3 {[%emt 0:01:40]} g6 {[%emt 0:04:39]} 15. Nf6 {[%emt 0:01:41]} Ng8 {[%emt 0:16:17]} 16. Bg5 {[%emt 0:03:48]} h6 {[%emt 0:06:15]} 17. Nxg8 {[%emt 0:02:32]} Rdxg8 {[%emt 0:00:52]} 18. Bf6 {[%emt 0:00:16]} Rh7 {[%emt 0:00:59]} 19. O-O {[%emt 0:07:28]} Ng7 {[%emt 0:02:22]} 20. a4 {[%emt 0:10:33]} Ne8 {[%emt 0:10:50]} 21. Be7 {[%emt 0:05:17]} Bxa4 {[%emt 0:03:33]} 22. Bc5 {[%emt 0:03:52]} b6 {[%emt 0:02:29]} 23. Rxa4 {[%emt 0:05:53]} bxc5 {[%emt 0:00:26]} 24. Bg4 {[%emt 0:00:35]} Qb6 {[%emt 0:11:39]} 25. dxc5 {[%emt 0:04:23]} Qxc5 {[%emt 0:00:39]} 26. Bxe6+ {[%emt 0:01:05]} Kd8 {[%emt 0:05:00]} 27. Bg4 {[%emt 0:06:53]} Nc7 {[%emt 0:01:39]} 28. Rb1 {[%emt 0:04:26]} Re8 {[%emt 0:08:15]} 29. Qf3 {[%emt 0:02:59]} Ke7 {[%emt 0:06:51]} 30. Rb7 {[%emt 0:04:45]} Kf8 {[%emt 0:03:51]} 31. Qf6 {[%emt 0:04:26]} Qe7 {[%emt 0:04:27]} 32. g3 {[%emt 0:00:34]} h5 {[%emt 0:02:33]} 33. Bf3 {[%emt 0:02:18]} h4 {[%emt 0:00:50]} 34. Kf1 {[%emt 0:06:02]} hxg3 {[%emt 0:01:28]} 35. hxg3 {[%emt 0:00:56]} a6 {[%emt 0:03:00]} 36. Rxa6 {[%emt 0:02:12]} Nxa6 {[%emt 0:01:09]} 37. Rxe7 {[%emt 0:00:10]} Rxe7 {[%emt 0:00:08]} 38. Qxa6 {[%emt 0:00:13]} Rxe5 {[%emt 0:00:26]} 39. Qa8+ {[%emt 0:00:17]} Kg7 {[%emt 0:00:13]} 40. Bxd5 {[%emt 0:00:11]} Rhh5 {[%emt 0:01:25]} 41. Bxc4 {[%emt 0:51:10]} Rc5 {[%emt 0:07:47]} 42. Qe4 {[%emt 0:00:00]} Rc7 {[%emt 0:09:03]} 43. Bd5 {[%emt 0:00:00]} Kf8 {[%emt 0:02:57]} 44. c4 {[%emt 0:00:00]} Re7 {[%emt 0:00:47]} 45. Qf3 {[%emt 0:00:00]} Rf5 {[%emt 0:01:15]} 46. Qa3 {[%emt 0:00:00]} Rfe5 {[%emt 0:00:46]} 47. c5 {[%emt 0:00:00]} f5 {[%emt 0:03:41]} 48. c6 {[%emt 0:00:00]} 1-0

[Event "95th Caplin Hastings Congress"]
[Site "Hastings"]
[Date "2020.01.03"]
[Round "7.41"]
[White "Sugden, John N"]
[Black "Merriman, James"]
[Result "1-0"]
[ECO "E27"]
[WhiteElo "2065"]
[BlackElo "1885"]
[Annotator "NA"]
[PlyCount "102"]
[EventDate "2019.12.28"]
[EventType "swiss"]
[EventCountry "ENG"]
[SourceTitle "playchess.com"]
[Source "ChessBase"]
[SourceQuality "1"]
[TimeControl "40/6600+30:3000+30"]

1. d4 {[%emt 0:09:48]} Nf6 {[%emt 0:09:57]} 2. c4 {[%emt 0:00:12]} e6 {[%emt 0:00:05]} 3. Nc3 {[%emt 0:00:20]} Bb4 {[%emt 0:00:04]} 4. f3 {[%emt 0:01:12]} d5 {[%emt 0:05:54]} 5. a3 {[%emt 0:00:30]} Bxc3+ {[%emt 0:02:59]} 6. bxc3 {[%emt 0:00:17]} O-O {[%emt 0:00:52]} 7. cxd5 {[%emt 0:03:23]} exd5 {[%emt 0:00:04]} 8. e3 {[%emt 0:01:25]} Nh5 {[%emt 0:07:11]} 9. g3 {[%emt 0:09:14]} c5 {[%emt 0:01:33]} 10. Bd3 {[%emt 0:02:13]} Re8 {[%emt 0:02:47]} 11. Ne2 {[%emt 0:03:11]} Bh3 {[%emt 0:00:49]} 12. Kf2 {[%emt 0:05:26]} Qf6 {[%emt 0:04:36]} 13. Ng1 {[%emt 0:03:17]} Bd7 {[%emt 0:03:42]} 14. Kg2 {[%emt 0:02:29]} Qd6 {[%emt 0:02:47]} 15. g4 {[%emt 0:03:41]} Nf6 {[%emt 0:01:01]} 16. Ne2 {[%emt 0:02:53]} Nc6 {[%emt 0:01:43]} 17. Ng3 {[%emt 0:13:05]} Be6 {[%emt 0:06:40]} 18. Qc2 {[%emt 0:05:24]} g6 {[%emt 0:04:06]} 19. h4 {[%emt 0:04:28]} c4 {[%emt 0:07:47]} 20. Be2 {[%emt 0:04:56]} h5 {[%emt 0:03:51]} 21. gxh5 {[%emt 0:06:55]} Nxh5 {[%emt 0:00:07]} 22. Nxh5 {[%emt 0:00:43]} Bf5 {[%emt 0:00:45]} 23. Qd1 {[%emt 0:09:17]} gxh5 {[%emt 0:00:11]} 24. Kf2 {[%emt 0:01:45]} Na5 {[%emt 0:02:54]} 25. e4 {[%emt 0:03:48]} dxe4 {[%emt 0:01:45]} 26. fxe4 {[%emt 0:00:59]} Bxe4 {[%emt 0:00:14]} 27. Bf3 {[%emt 0:01:04]} Nb3 {[%emt 0:06:31]} 28. Ra2 {[%emt 0:08:02]} Nxc1 {[%emt 0:01:00]} 29. Qxc1 {[%emt 0:00:47]} Bxf3 {[%emt 0:02:48]} 30. Qg5+ {[%emt 0:01:06]} Qg6 {[%emt 0:02:10]} 31. Kxf3 {[%emt 0:01:44]} Kh7 {[%emt 0:01:47]} 32. Qxg6+ {[%emt 0:01:05]} fxg6 {[%emt 0:00:14]} 33. Re2 {[%emt 0:00:55]} Rxe2 {[%emt 0:01:33]} 34. Kxe2 {[%emt 0:00:08]} Rf8 {[%emt 0:00:28]} 35. Ke3 {[%emt 0:01:59]} Re8+ {[%emt 0:01:58]} 36. Kf3 {[%emt 0:01:12]} Kg7 {[%emt 0:00:25]} 37. Rb1 {[%emt 0:01:45]} Re7 {[%emt 0:01:28]} 38. Rb4 {[%emt 0:01:05]} Rc7 {[%emt 0:00:33]} 39. Ke4 {[%emt 0:01:29]} g5 {[%emt 0:00:59]} 40. hxg5 {[%emt 0:03:02]} Kg6 {[%emt 0:00:06]} 41. d5 {[%emt 0:53:12]} Re7+ {[%emt 0:54:52]} 42. Kf4 {[%emt 0:00:00]} Rf7+ {[%emt 0:00:00]} 43. Ke5 {[%emt 0:00:00]} Rf3 {[%emt 0:00:00]} 44. Rxc4 {[%emt 0:00:00]} Kxg5 {[%emt 0:00:00]} 45. d6 {[%emt 0:00:00]} Re3+ {[%emt 0:00:00]} 46. Kd5 {[%emt 0:00:00]} Rd3+ {[%emt 0:00:00]} 47. Ke6 {[%emt 0:00:00]} b5 {[%emt 0:00:00]} 48. Rc5+ {[%emt 0:00:00]} Kf4 {[%emt 0:00:00]} 49. d7 {[%emt 0:00:00]} h4 {[%emt 0:00:00]} 50. Rd5 {[%emt 0:00:00]} Re3+ {[%emt 0:00:00]} 51. Kf6 {[%emt 0:00:00]} h3 {[%emt 0:00:00]} 1-0

[Event "95th Caplin Hastings Congress"]
[Site "Hastings"]
[Date "2020.01.03"]
[Round "7.42"]
[White "Salmons, Calum"]
[Black "Anuprita, Patil"]
[Result "1-0"]
[ECO "C44"]
[WhiteElo "1838"]
[BlackElo "2025"]
[Annotator "NA"]
[PlyCount "49"]
[EventDate "2019.12.28"]
[EventType "swiss"]
[EventCountry "ENG"]
[SourceTitle "playchess.com"]
[Source "ChessBase"]
[SourceQuality "1"]
[TimeControl "40/6600+30:3000+30"]

1. e4 {[%emt 0:09:31]} e5 {[%emt 0:15:13]} 2. Nf3 {[%emt 0:00:10]} Nc6 {[%emt 0:00:16]} 3. d4 {[%emt 0:00:10]} exd4 {[%emt 0:00:09]} 4. Bc4 {[%emt 0:00:06]} Bc5 {[%emt 0:00:41]} 5. c3 {[%emt 0:01:54]} d3 {[%emt 0:00:30]} 6. O-O {[%emt 0:02:58]} d6 {[%emt 0:01:55]} 7. Qxd3 {[%emt 0:03:56]} Nf6 {[%emt 0:03:16]} 8. b4 {[%emt 0:04:43]} Bb6 {[%emt 0:00:13]} 9. a4 {[%emt 0:01:08]} a6 {[%emt 0:00:27]} 10. Bg5 {[%emt 0:07:15]} h6 {[%emt 0:02:16]} 11. Bh4 {[%emt 0:03:06]} Qe7 {[%emt 0:03:18]} 12. Nbd2 {[%emt 0:04:03]} O-O {[%emt 0:08:41]} 13. Rfe1 {[%emt 0:10:03]} g5 {[%emt 0:13:07]} 14. e5 {[%emt 0:23:31]} Ng4 {[%emt 0:24:08]} 15. Bg3 {[%emt 0:03:12]} dxe5 {[%emt 0:14:30]} 16. h3 {[%emt 0:05:51]} e4 {[%emt 0:08:31]} 17. Rxe4 {[%emt 0:07:39]} Bf5 {[%emt 0:01:12]} 18. hxg4 {[%emt 0:00:26]} Bxe4 {[%emt 0:00:10]} 19. Nxe4 {[%emt 0:01:56]} Kg7 {[%emt 0:02:45]} 20. Re1 {[%emt 0:03:33]} Rad8 {[%emt 0:00:12]} 21. Qc2 {[%emt 0:07:12]} Qd7 {[%emt 0:00:10]} 22. Ba2 {[%emt 0:02:52]} f6 {[%emt 0:05:08]} 23. Bb1 {[%emt 0:02:49]} Rde8 {[%emt 0:01:23]} 24. Nc5 {[%emt 0:04:02]} Rxe1+ {[%emt 0:01:55]} 25. Nxe1 {[%emt 0:00:07]} 1-0

[Event "95th Caplin Hastings Congress"]
[Site "Hastings"]
[Date "2020.01.03"]
[Round "7.43"]
[White "Verma, Shlok"]
[Black "Varney, Zoe"]
[Result "1/2-1/2"]
[ECO "D60"]
[WhiteElo "1660"]
[BlackElo "2004"]
[Annotator "NA"]
[PlyCount "87"]
[EventDate "2019.12.28"]
[EventType "swiss"]
[EventCountry "ENG"]
[SourceTitle "playchess.com"]
[Source "ChessBase"]
[SourceQuality "1"]
[TimeControl "40/6600+30:3000+30"]

1. d4 {[%emt 0:09:43]} d5 {[%emt 0:09:48]} 2. c4 {[%emt 0:00:09]} e6 {[%emt 0:00:16]} 3. Nf3 {[%emt 0:00:56]} Nf6 {[%emt 0:00:08]} 4. Nc3 {[%emt 0:00:09]} c6 {[%emt 0:00:11]} 5. Bg5 {[%emt 0:00:40]} Be7 {[%emt 0:02:32]} 6. e3 {[%emt 0:00:29]} h6 {[%emt 0:00:42]} 7. Bh4 {[%emt 0:00:08]} O-O {[%emt 0:00:06]} 8. Bd3 {[%emt 0:02:06]} Nbd7 {[%emt 0:08:56]} 9. cxd5 {[%emt 0:01:32]} Nxd5 {[%emt 0:03:14]} 10. Bxe7 {[%emt 0:03:59]} Qxe7 {[%emt 0:00:50]} 11. O-O {[%emt 0:00:10]} Nxc3 {[%emt 0:01:29]} 12. bxc3 {[%emt 0:00:10]} e5 {[%emt 0:03:11]} 13. Nd2 {[%emt 0:23:51]} f5 {[%emt 0:11:10]} 14. Re1 {[%emt 0:08:58]} Qf6 {[%emt 0:05:03]} 15. f3 {[%emt 0:09:26]} Nb6 {[%emt 0:07:21]} 16. Nc4 {[%emt 0:04:08]} Nxc4 {[%emt 0:07:22]} 17. Bxc4+ {[%emt 0:01:59]} Kh8 {[%emt 0:00:58]} 18. Qd2 {[%emt 0:09:34]} Be6 {[%emt 0:06:38]} 19. Bxe6 {[%emt 0:09:22]} Qxe6 {[%emt 0:01:31]} 20. Qb2 {[%emt 0:00:14]} b6 {[%emt 0:01:11]} 21. Rad1 {[%emt 0:05:55]} Rad8 {[%emt 0:03:08]} 22. Qb3 {[%emt 0:01:38]} Qxb3 {[%emt 0:02:33]} 23. axb3 {[%emt 0:00:06]} exd4 {[%emt 0:00:15]} 24. exd4 {[%emt 0:00:06]} Rfe8 {[%emt 0:04:29]} 25. Kf2 {[%emt 0:00:48]} Kg8 {[%emt 0:00:14]} 26. Rxe8+ {[%emt 0:01:20]} Rxe8 {[%emt 0:00:05]} 27. d5 {[%emt 0:00:12]} cxd5 {[%emt 0:06:58]} 28. Rxd5 {[%emt 0:00:25]} Rf8 {[%emt 0:00:07]} 29. Ke3 {[%emt 0:16:05]} g6 {[%emt 0:01:21]} 30. Kd4 {[%emt 0:01:11]} Rf7 {[%emt 0:00:19]} 31. Rd6 {[%emt 0:00:31]} Kg7 {[%emt 0:07:52]} 32. c4 {[%emt 0:00:29]} Re7 {[%emt 0:03:44]} 33. b4 {[%emt 0:01:04]} g5 {[%emt 0:03:01]} 34. c5 {[%emt 0:00:38]} bxc5+ {[%emt 0:01:05]} 35. bxc5 {[%emt 0:00:09]} Re2 {[%emt 0:00:09]} 36. Kd5 {[%emt 0:02:32]} Rxg2 {[%emt 0:00:59]} 37. c6 {[%emt 0:00:13]} Rxh2 {[%emt 0:01:13]} 38. c7 {[%emt 0:00:18]} Rd2+ {[%emt 0:00:14]} 39. Ke6 {[%emt 0:00:35]} Rc2 {[%emt 0:01:13]} 40. Kd7 {[%emt 0:01:01]} Rxc7+ {[%emt 0:01:20]} 41. Kxc7 {[%emt 0:50:28]} g4 {[%emt 0:50:04]} 42. f4 {[%emt 0:00:00]} h5 {[%emt 0:00:00]} 43. Rd7+ {[%emt 0:00:00]} Kg6 {[%emt 0:00:00]} 44. Rd6+ {[%emt 0:00:00]} 1/2-1/2